bitfinex-derivatives/quotes_SOLF0:USTF0_20250928
["timestamp","ask_amount","ask_price","bid_price","bid_amount"]
[1759101301794,7.31,209.99,209.88,0.8977245]
[1759101302095,7.31,209.99,209.9,1.39275866]
[1759101303392,7.31,210.09,209.94,1.39275866]
[1759101303589,7.31,210.03,209.94,1.39275866]
[1759101303994,7.31,210.03,209.95,4.2846]
[1759101305198,7.31,210.03,209.94,1.39275866]
[1759101305397,1.39275866,210.02,209.92,1.39275866]
[1759101305588,7.31,210.01,209.92,1.39275866]
[1759101305792,7.31,209.99,209.91,4.2854]
[1759101305997,7.31,209.99,209.9,1.39275866]
[1759101306197,7.31,209.99,209.88,0.8977245]
[1759101306198,1.39275866,209.96,209.88,0.8977245]
[1759101306397,7.31,209.95,209.88,0.8977245]
[1759101307698,11.5948,209.95,209.88,0.8977245]
[1759101307899,1.39275866,209.94,209.86,139.12684281]
[1759101308097,7.31,209.93,209.86,139.12684281]
[1759101308397,1.39275866,209.94,209.86,139.12684281]
[1759101308603,7.31,209.93,209.86,139.12684281]
[1759101308896,1.39275866,209.94,209.86,139.12684281]
[1759101309095,7.31,209.93,209.86,139.12684281]
[1759101309296,1.39275866,209.94,209.86,139.12684281]
[1759101309497,7.31,209.93,209.86,139.12684281]
[1759101310099,7.31,209.93,209.87,4.2862]
[1759101310302,7.31,209.93,209.86,139.12684281]
[1759101310995,1.39275866,209.94,209.86,139.12684281]
[1759101311200,7.31,209.93,209.86,139.12684281]
[1759101311497,7.63,209.93,209.86,139.12684281]
[1759101311697,1.39275866,209.94,209.84,5.67975866]
[1759101312000,66.6451,209.98,209.83,118.94]
[1759101312001,7.63,209.9,209.83,118.94]
[1759101313198,1.39275866,209.9,209.83,118.94]
[1759101313402,7.63,209.89,209.81,14.04425884]
[1759101313603,7.63,209.89,209.8,1.39275866]
[1759101314099,7.63,209.93,209.85,5.67955866]
[1759101314899,7.63,209.93,209.85,1.39275866]
[1759101317401,9.02275866,209.93,209.85,1.39275866]
[1759101317706,7.63,209.93,209.85,1.39275866]
[1759101318807,7.63,209.93,209.85,5.67945866]
[1759101319402,7.63,209.93,209.87,5.67915866]
[1759101321112,7.63,209.93,209.89,4.286]
[1759101321505,7.63,209.96,209.89,4.286]
[1759101327113,7.63,209.96,209.89,5.67875866]
[1759101328807,7.63,209.96,209.87,1.39275866]
[1759101329009,7.49,209.93,209.83,1.39275866]
[1759101329216,7.49,209.91,209.83,1.39275866]
[1759101330107,7.49,209.91,209.85,1.39275866]
[1759101331117,7.49,209.95,209.87,5.67895866]
[1759101332516,7.49,209.95,209.88,4.286]
[1759101333816,7.49,209.95,209.89,4.2858]
[1759101334612,8.88275866,209.95,209.87,4.2863]
[1759101336014,8.88275866,209.95,209.84,4.2869]
[1759101336222,7.49,209.92,209.84,4.2869]
[1759101337914,6.46353154,209.95,209.8,16.6246692]
[1759101337915,7.49,209.94,209.8,14.44593766]
[1759101338115,2.17873154,209.92,209.77,121.03873154]
[1759101338323,7.49,209.91,209.77,121.03873154]
[1759101338614,4.2856,209.91,209.77,121.03873154]
[1759101338818,7.49,209.88,209.75,66.7149]
[1759101339020,7.49,209.88,209.76,4.2885]
[1759101339720,7.49,209.85,209.76,4.2885]
[1759101341522,2.17873154,209.86,209.75,14.6515137]
[1759101341821,7.49,209.85,209.74,0.82868981]
[1759101342015,11.777,209.85,209.72,0.89451069]
[1759101342214,11.777,209.85,209.74,4.2889]
[1759101342416,2.17873154,209.83,209.73,14.06965354]
[1759101342626,7.49,209.82,209.71,0.82963811]
[1759101343123,7.49,209.82,209.71,5.11913811]
[1759101343324,47.11,209.82,209.71,4.2895]
[1759101343514,47.11,209.82,209.67,2.17873154]
[1759101343716,47.11,209.82,209.67,3.00848834]
[1759101343916,7.49,209.8,209.68,4.2901]
[1759101344319,9.66873154,209.8,209.68,4.2901]
[1759101344524,9.66873154,209.8,209.7,4.2899]
[1759101344721,2.17873154,209.8,209.7,18.45305807]
[1759101344921,4.288,209.79,209.7,18.45305807]
[1759101345125,7.49,209.78,209.67,5.1200568]
[1759101346327,7.49,209.73,209.58,223.26892467]
[1759101346726,7.49,209.73,209.64,66.7509]
[1759101347632,7.49,209.73,209.67,4.2904]
[1759101348432,7.49,209.73,209.65,14.44548503]
[1759101348633,7.49,209.73,209.64,4.291]
[1759101350027,7.49,209.73,209.61,7.30042481]
[1759101350827,7.49,209.73,209.61,5.12169327]
[1759101352128,2.17873154,209.73,209.61,19.39106853]
[1759101352324,9.66873154,209.73,209.61,5.12169327]
[1759101354537,9.66873154,209.73,209.63,4.2913]
[1759101354838,9.66873154,209.73,209.61,67.59019327]
[1759101354839,7.49,209.73,209.61,67.59019327]
[1759101355037,2.17873154,209.74,209.61,81.79663494]
[1759101355338,7.88,209.73,209.61,81.79663494]
[1759101355531,7.88,209.73,209.65,4.2908]
[1759101357233,7.88,209.73,209.61,81.79663494]
[1759101357438,2.17873154,209.74,209.61,81.79663494]
[1759101357638,7.88,209.73,209.61,81.79663494]
[1759101358142,7.88,209.73,209.64,4.2911]
[1759101358333,6.46783154,209.74,209.64,4.2911]
[1759101358537,7.88,209.73,209.64,4.2911]
[1759101360642,7.88,209.73,209.66,4.2907]
[1759101361542,7.88,209.73,209.61,81.79523494]
[1759101361543,7.88,209.73,209.63,4.2911]
[1759101361745,7.88,209.73,209.61,81.79523494]
[1759101362344,7.88,209.72,209.61,15.03653494]
[1759101362739,4.2893,209.73,209.61,15.03653494]
[1759101363044,7.88,209.72,209.61,15.03653494]
[1759101363637,7.88,209.72,209.63,4.2911]
[1759101363834,4.2897,209.71,209.61,15.03653494]
[1759101364042,7.88,209.7,209.61,15.03653494]
[1759101364240,4.2897,209.71,209.61,18.49814167]
[1759101364543,7.88,209.68,209.58,118.86]
[1759101364744,7.88,209.68,209.58,14.61335957]
[1759101364937,7.88,209.68,209.55,66.7795]
[1759101365134,7.88,209.68,209.56,0.8302418]
[1759101366540,7.88,209.68,209.59,4.2919]
[1759101366738,7.88,209.68,209.56,0.8302418]
[1759101366938,104.8297,209.71,209.56,14.97853727]
[1759101367239,10.05873154,209.71,209.56,0.8302418]
[1759101367437,4.2901,209.7,209.56,3.00897334]
[1759101367642,7.88,209.69,209.56,3.00897334]
[1759101368342,12.1703,209.69,209.59,4.292]
[1759101368544,12.1703,209.69,209.56,0.8302418]
[1759101369444,7.88,209.69,209.57,66.7723]
[1759101370435,7.88,209.69,209.61,4.2915]
[1759101372837,7.88,209.69,209.62,4.2913]
[1759101373750,7.88,209.69,209.63,4.2911]
[1759101374644,7.78,209.72,209.61,66.7594]
[1759101375247,7.78,209.72,209.63,4.2913]
[1759101375646,12.0696,209.72,209.63,4.2913]
[1759101376048,4.2898,209.71,209.61,4.2917]
[1759101376248,7.78,209.7,209.61,4.2917]
[1759101376752,7.78,209.7,209.62,4.2914]
[1759101378355,7.78,209.68,209.59,4.292]
[1759101378857,7.78,209.66,209.59,4.292]
[1759101380257,7.78,209.66,209.57,66.7734]
[1759101381549,7.78,209.7,209.63,4.2913]
[1759101382246,7.78,209.7,209.6,66.7631]
[1759101383662,7.78,209.7,209.64,4.291]
[1759101385060,7.78,209.7,209.58,66.7698]
[1759101385061,7.78,209.7,209.65,4.2907]
[1759101386355,7.78,209.7,209.63,4.2913]
[1759101386561,7.78,209.7,209.61,2.17873154]
[1759101387060,7.78,209.7,209.65,4.2907]
[1759101387662,7.97,209.76,209.65,4.2907]
[1759101387955,7.97,209.74,209.65,4.2907]
[1759101388161,7.97,209.74,209.64,2.17873154]
[1759101388363,7.97,209.74,209.65,66.748]
[1759101388559,7.97,209.77,209.67,2.17873154]
[1759101389358,7.97,209.77,209.7,4.2897]
[1759101390754,7.97,209.77,209.71,4.2895]
[1759101391064,7.97,209.77,209.67,2.17873154]
[1759101392760,7.97,209.77,209.68,4.2901]
[1759101392962,7.97,209.77,209.67,2.17873154]
[1759101393266,7.97,209.77,209.7,4.2899]
[1759101393660,7.97,209.77,209.72,4.2895]
[1759101393968,7.97,209.81,209.72,4.2895]
[1759101394162,7.97,209.79,209.72,4.2895]
[1759101394966,7.97,209.82,209.74,4.289]
[1759101396371,7.97,209.82,209.73,2.17873154]
[1759101396867,50.48,209.88,209.73,66.7227]
[1759101397066,7.97,209.87,209.74,2.17873154]
[1759101397757,7.97,209.87,209.79,4.288]
[1759101398268,7.97,209.87,209.79,5.68298425]
[1759101399571,7.97,209.87,209.79,1.39498425]
[1759101400461,54.7663,209.88,209.73,1.39498425]
[1759101400462,7.97,209.81,209.73,1.39498425]
[1759101401368,7.97,209.81,209.73,5.68408425]
[1759101402959,7.97,209.81,209.74,4.2889]
[1759101403168,7.97,209.81,209.75,1.39498425]
[1759101404066,7.97,209.81,209.73,1.39498425]
[1759101404571,7.97,209.81,209.75,4.2887]
[1759101404763,7.97,209.81,209.73,1.39498425]
[1759101404964,7.97,209.81,209.75,1.39498425]
[1759101406070,7.97,209.84,209.76,4.2885]
[1759101407064,7.97,209.84,209.78,4.2882]
[1759101409375,7.97,209.84,209.76,4.2886]
[1759101409675,7.97,209.84,209.75,1.39498425]
[1759101409870,7.97,209.84,209.79,4.2879]
[1759101410574,7.97,209.85,209.79,4.2879]
[1759101410771,7.97,209.85,209.77,5.68338425]
[1759101410972,7.97,209.85,209.77,1.39498425]
[1759101411370,7.97,209.85,209.74,66.7191]
[1759101411569,7.97,209.85,209.76,1.39498425]
[1759101412170,7.97,209.85,209.78,4.2881]
[1759101417477,7.25,209.85,209.78,18.65597204]
[1759101417672,7.25,209.85,209.78,4.2881]
[1759101418981,8.64498425,209.85,209.79,4.2879]
[1759101420385,8.64498425,209.85,209.76,4.2885]
[1759101420775,1.39498425,209.81,209.76,14.39497281]
[1759101420975,1.39498425,209.81,209.7,66.7311]
[1759101420976,7.25,209.8,209.72,1.39498425]
[1759101422078,7.25,209.8,209.7,1.39498425]
[1759101422778,1.39498425,209.81,209.7,15.94421528]
[1759101422978,7.25,209.8,209.7,15.94421528]
[1759101423176,7.25,209.8,209.72,1.39498425]
[1759101423385,7.25,209.83,209.74,1.39498425]
[1759101423580,7.25,209.83,209.76,4.2885]
[1759101423787,7.25,209.83,209.73,66.7223]
[1759101423985,7.25,209.83,209.76,1.39498425]
[1759101424585,7.25,209.83,209.77,4.2883]
[1759101424980,7.25,209.83,209.76,1.39498425]
[1759101425487,7.25,209.83,209.78,1.39498425]
[1759101426492,7.25,209.88,209.78,1.39498425]
[1759101426682,7.25,209.88,209.8,1.39498425]
[1759101426882,7.25,209.88,209.82,1.39498425]
[1759101427286,7.25,209.88,209.84,4.2869]
[1759101427584,1.25016946,209.89,209.84,1.39498425]
[1759101427977,1.25016946,209.89,209.87,4.2862]
[1759101428385,7.25,209.93,209.87,4.2862]
[1759101428789,7.25,209.94,209.88,4.286]
[1759101429789,7.25,209.94,209.86,4.2866]
[1759101430088,7.25,209.94,209.85,1.39498425]
[1759101432591,7.25,209.94,209.87,4.2863]
[1759101434094,7.25,209.94,209.87,5.68128425]
[1759101434795,7.25,209.94,209.89,4.2859]
[1759101435096,9.14498425,209.98,209.87,68.07228425]
[1759101435795,7.75,209.95,209.88,4.286]
[1759101435997,185.0709,210.02,209.83,1.39498425]
[1759101435998,7.75,209.93,209.83,1.39498425]
[1759101436198,7.75,209.93,209.85,4.2866]
[1759101438298,7.75,209.93,209.85,1.39498425]
[1759101439088,7.75,209.94,209.88,4.2861]
[1759101442100,7.75,209.99,209.91,4.2855]
[1759101442292,7.75,209.99,209.88,1.39498425]
[1759101442493,7.75,209.96,209.88,1.39498425]
[1759101445703,7.73,209.98,209.91,4.2854]
[1759101446697,7.73,209.98,209.92,1.39498425]
[1759101446901,7.73,209.98,209.89,66.67]
[1759101447098,7.73,209.98,209.92,1.39498425]
[1759101447695,81.66,210.01,209.94,1.39498425]
[1759101447900,89.39,210.01,209.96,1.39498425]
[1759101448097,81.66,210.01,209.96,1.39498425]
[1759101448302,7.73,210.0,209.96,1.39498425]
[1759101449404,7.73,210.0,209.94,1.39498425]
[1759101449604,7.73,210.0,209.98,4.284]
[1759101450607,7.73,210.0,209.98,18.60391036]
[1759101451706,7.73,210.0,209.98,14.31991036]
[1759101452003,7.73,210.0,209.94,1.39498425]
[1759101452208,7.73,210.0,209.97,4.2842]
[1759101452410,7.73,210.0,209.94,1.39498425]
[1759101452802,7.73,210.0,209.98,4.284]
[1759101453610,7.73,210.0,209.98,18.25694275]
[1759101454907,1.39498425,210.06,209.98,13.97294275]
[1759101455099,1.39498425,210.06,209.94,66.6551]
[1759101455304,7.73,210.05,209.95,1.39498425]
[1759101455504,1.39498425,210.04,209.95,15.35703996]
[1759101455705,7.73,210.03,209.95,1.39498425]
[1759101455905,7.73,210.03,209.95,4.2847]
[1759101456305,7.73,210.03,209.94,1.39498425]
[1759101456805,7.73,210.03,209.91,66.665]
[1759101457014,7.73,210.01,209.93,1.39498425]
[1759101457916,7.73,210.01,209.95,4.2846]
[1759101458212,7.73,210.01,209.95,14.32481266]
[1759101458513,7.73,210.01,209.93,1.39498425]
[1759101459108,1.39498425,210.03,209.97,4.2842]
[1759101459314,7.73,210.02,209.97,1.39498425]
[1759101459805,7.73,210.02,210.0,4.2837]
[1759101461205,120.43553406,210.1,210.0,4.2837]
[1759101461408,7.73,210.09,210.0,4.2837]
[1759101461809,7.73,210.09,210.01,66.6336]
[1759101462315,7.73,210.1,210.05,4.2826]
[1759101463503,346.7,210.15,210.01,66.6336]
[1759101463708,7.73,210.1,210.04,66.6219]
[1759101464613,7.73,210.1,210.08,4.2819]
[1759101465607,7.73,210.1,210.06,4.2825]
[1759101465913,2.17553406,210.11,210.06,4.2825]
[1759101466112,7.73,210.1,210.06,4.2825]
[1759101467812,7.73,210.1,210.04,4.2829]
[1759101468614,2.17553406,210.11,210.05,4.2826]
[1759101468818,7.73,210.1,210.02,66.6279]
[1759101469016,2.17553406,210.12,210.02,66.6279]
[1759101469213,7.73,210.11,209.97,89.1]
[1759101469517,7.73,210.11,210.03,4.283]
[1759101469820,7.73,210.11,210.0,4.2837]
[1759101470009,7.73,210.08,210.0,4.2837]
[1759101470214,7.73,210.08,209.96,28.26]
[1759101470418,2.17553406,210.09,209.96,28.26]
[1759101470611,7.73,210.08,209.96,28.26]
[1759101470817,7.73,210.05,209.96,28.26]
[1759101471018,7.73,210.05,209.99,4.2838]
[1759101471823,7.73,210.09,209.98,66.6427]
[1759101474713,7.73,210.09,209.96,94.9088]
[1759101474919,7.73,210.09,209.97,66.6462]
[1759101475316,7.73,210.09,210.02,4.2832]
[1759101475917,46.66,210.11,210.03,4.283]
[1759101476116,7.37,210.12,210.01,66.6328]
[1759101476820,6.45643406,210.14,210.01,66.6328]
[1759101477018,7.37,210.12,209.98,118.16]
[1759101477216,4.2812,210.13,209.98,118.16]
[1759101477422,7.37,210.1,209.98,118.16]
[1759101477622,7.37,210.1,209.97,68.82173406]
[1759101477815,2.17553406,210.11,209.97,68.82173406]
[1759101478019,7.37,210.1,209.97,68.82173406]
[1759101478826,7.37,210.1,209.99,66.6396]
[1759101479214,7.37,210.1,210.04,4.2828]
[1759101479419,7.37,210.1,210.0,66.6349]
[1759101479621,7.37,210.1,210.0,68.81043406]
[1759101480226,7.37,210.1,210.05,4.2826]
[1759101480425,2.17553406,210.14,210.05,4.2826]
[1759101480726,7.37,210.13,210.05,4.2826]
[1759101481319,7.37,210.1,210.05,4.2826]
[1759101481520,7.37,210.1,210.03,4.2831]
[1759101481830,4.2812,210.13,209.99,66.6396]
[1759101482123,7.37,210.1,210.0,66.6362]
[1759101482324,7.37,210.1,210.01,66.6332]
[1759101482520,2.17553406,210.14,210.06,66.6164]
[1759101482721,354.07,210.15,210.04,66.6226]
[1759101482722,464.82,210.15,210.04,66.6226]
[1759101483026,7.37,210.14,210.04,66.6226]
[1759101483228,7.37,210.14,210.05,66.6184]
[1759101484525,7.37,210.14,210.1,4.2815]
[1759101484723,464.82,210.15,210.1,4.2815]
[1759101485125,7.37,210.14,210.08,4.282]
[1759101485624,7.37,210.14,210.05,66.6184]
[1759101486132,7.37,210.14,210.07,4.2823]
[1759101486431,7.37,210.14,210.04,66.6226]
[1759101487228,7.37,210.14,210.02,66.6293]
[1759101488729,7.37,210.14,210.07,4.2822]
[1759101489333,7.37,210.14,210.05,66.6202]
[1759101489528,27.33,210.19,210.06,66.6175]
[1759101489830,19.96,210.18,210.07,2.17553406]
[1759101490625,19.96,210.18,210.11,4.2814]
[1759101491231,7.37,210.17,210.04,85.05553406]
[1759101491537,7.37,210.17,210.05,66.6201]
[1759101491731,7.37,210.17,210.1,4.2815]
[1759101494035,7.37,210.17,210.11,4.2814]
[1759101495543,7.37,210.17,210.09,4.2819]
[1759101496034,7.46,210.24,210.2,4.2795]
[1759101496234,2.17553406,210.35,210.23,66.5636]
[1759101496436,7.46,210.34,210.25,66.5554]
[1759101496636,17.82,210.35,210.29,4.2778]
[1759101496837,17.82,210.35,210.29,18.65075163]
[1759101496838,25.28,210.35,210.29,18.65075163]
[1759101497032,65.46,210.34,210.29,4.2778]
[1759101497335,7.46,210.33,210.29,4.2778]
[1759101497535,7.46,210.33,210.26,4.2784]
[1759101498341,7.46,210.33,210.14,184.6297]
[1759101498534,7.46,210.33,210.19,2.17553406]
[1759101498736,7.46,210.33,210.19,16.52964556]
[1759101498937,7.46,210.33,210.19,2.17553406]
[1759101499644,7.46,210.31,210.22,4.2793]
[1759101501239,118.0,210.3,210.22,4.2793]
[1759101501743,7.46,210.29,210.19,6.45523406]
[1759101502139,118.0,210.3,210.19,14.19434234]
[1759101502340,66.549,210.28,210.09,128.6065]
[1759101502546,7.46,210.26,210.12,2.17553406]
[1759101502741,7.46,210.26,210.17,4.2801]
[1759101502942,7.46,210.26,210.15,68.76393406]
[1759101503245,7.46,210.26,210.18,2.17553406]
[1759101503543,7.46,210.29,210.2,4.2797]
[1759101503937,85.08,210.28,210.2,4.2797]
[1759101504744,85.08,210.28,210.18,2.17553406]
[1759101505148,7.26,210.27,210.18,2.17553406]
[1759101505746,7.26,210.27,210.15,2.17553406]
[1759101506149,7.26,210.25,210.15,2.17553406]
[1759101508147,7.26,210.25,210.12,2.17553406]
[1759101509351,7.26,210.25,210.11,2.17553406]
[1759101509745,7.26,210.25,210.11,6.45703406]
[1759101509746,4.2789,210.24,210.11,6.45703406]
[1759101509952,7.26,210.23,210.11,6.45703406]
[1759101510146,49.84,210.22,210.11,2.17553406]
[1759101510747,7.26,210.21,210.11,2.17553406]
[1759101510945,7.26,210.21,210.1,15.54396222]
[1759101511144,7.26,210.21,210.11,2.17553406]
[1759101511843,7.26,210.21,210.11,6.45683406]
[1759101512249,103.62,210.21,210.11,6.45683406]
[1759101512857,103.62,210.21,210.12,4.2811]
[1759101513551,103.62,210.21,210.11,2.17553406]
[1759101513747,96.36,210.21,210.1,18.90595206]
[1759101513952,7.26,210.2,210.1,18.90595206]
[1759101514359,117.94,210.19,210.11,2.17553406]
[1759101515557,117.94,210.19,210.13,4.2811]
[1759101515759,125.2,210.2,210.13,4.2811]
[1759101516551,125.2,210.2,210.14,4.2807]
[1759101517051,7.26,210.28,210.18,4.2799]
[1759101517258,7.26,210.26,210.18,4.2799]
[1759101517458,7.26,210.24,210.15,2.17553406]
[1759101517759,7.26,210.24,210.15,4.2806]
[1759101517956,7.26,210.24,210.13,2.17553406]
[1759101518160,45.6,210.25,210.1,80.59829258]
[1759101518161,45.6,210.25,210.1,16.16922664]
[1759101518662,7.26,210.24,210.1,16.16922664]
[1759101518865,7.26,210.23,210.13,4.2809]
[1759101519350,4.2795,210.21,210.11,4.2815]
[1759101519552,7.26,210.2,210.11,4.2815]
[1759101519758,7.26,210.18,210.11,4.2815]
[1759101521261,36.81553406,210.19,210.01,66.6325]
[1759101521455,2.17553406,210.16,210.01,66.6325]
[1759101521654,7.26,210.15,210.01,66.6325]
[1759101521856,7.26,210.13,210.01,66.6325]
[1759101522054,48.4,210.12,210.01,66.6325]
[1759101522363,7.26,210.11,210.03,1.39190071]
[1759101522662,7.26,210.11,210.04,4.2828]
[1759101522858,7.26,210.1,210.04,18.42588678]
[1759101523161,7.26,210.1,210.04,4.2828]
[1759101524063,7.26,210.1,210.01,5.67530071]
[1759101524357,7.26,210.08,210.01,5.67530071]
[1759101524756,103.3,210.08,210.01,5.67530071]
[1759101524956,7.26,210.08,210.01,5.67530071]
[1759101525156,51.28,210.08,210.01,5.67530071]
[1759101525555,7.26,210.08,210.03,4.2831]
[1759101525759,46.16,210.09,210.03,5.67500071]
[1759101525960,90.4,210.11,210.03,5.67500071]
[1759101526366,7.26,210.1,210.03,5.67500071]
[1759101527069,53.78,210.1,210.03,5.67500071]
[1759101527766,97.98,210.1,210.03,5.67500071]
[1759101527965,7.26,210.1,210.03,5.67500071]
[1759101528161,53.76,210.1,210.03,5.67500071]
[1759101528863,7.26,210.1,210.03,5.67500071]
[1759101529168,8.65190071,210.15,210.05,5.67460071]
[1759101529363,117.94,210.14,210.05,5.67460071]
[1759101529666,7.26,210.13,210.05,5.67460071]
[1759101529858,125.22,210.13,210.05,5.67460071]
[1759101530368,125.22,210.13,210.05,4.2827]
[1759101530567,117.96,210.12,210.05,5.67460071]
[1759101531068,126.61190071,210.11,210.02,4.2832]
[1759101532062,126.61190071,210.11,210.04,4.2828]
[1759101532769,117.96,210.1,210.06,4.2825]
[1759101532962,7.26,210.09,210.06,4.2825]
[1759101533162,117.96,210.1,210.06,4.2825]
[1759101533364,7.26,210.09,210.03,1.39190071]
[1759101533766,7.26,210.09,210.02,4.2832]
[1759101534768,1.39190071,210.08,210.01,14.51849656]
[1759101534957,7.33,210.07,210.0,4.2837]
[1759101537873,11.6124,210.07,210.0,4.2837]
[1759101538072,1.39190071,210.06,210.0,4.2837]
[1759101538369,1.39190071,210.06,210.0,13.9430577]
[1759101538574,7.33,210.05,209.98,4.2841]
[1759101539475,7.33,210.03,210.0,4.2837]
[1759101539671,7.33,210.04,209.97,66.6454]
[1759101539872,7.33,210.08,210.02,4.2832]
[1759101540076,7.33,210.06,210.02,4.2832]
[1759101540775,8.72190071,210.1,210.02,4.2832]
[1759101540972,8.72190071,210.1,210.03,4.283]
[1759101541173,47.4,210.09,210.03,4.283]
[1759101542577,7.33,210.08,210.01,1.39190071]
[1759101544473,7.33,210.08,210.0,13.99455031]
[1759101544678,7.33,210.07,209.99,1.39190071]
[1759101545279,346.46,210.15,210.01,1.39190071]
[1759101545280,8.72190071,210.11,210.01,1.39190071]
[1759101545576,7.33,210.11,210.05,1.39190071]
[1759101545982,7.33,210.11,210.07,4.2822]
[1759101547272,7.33,210.14,210.08,4.2819]
[1759101547482,7.33,210.14,210.08,5.67380071]
[1759101548176,7.33,210.14,210.08,1.39190071]
[1759101548476,119.33190071,210.13,209.99,81.21705702]
[1759101548675,7.33,210.12,210.02,1.39190071]
[1759101548873,117.94,210.11,210.02,1.39190071]
[1759101549082,7.33,210.1,210.02,1.39190071]
[1759101549585,7.33,210.1,210.02,5.67500071]
[1759101550780,7.33,210.1,210.02,4.2831]
[1759101552785,8.72190071,210.1,210.02,4.2831]
[1759101553192,8.72190071,210.1,210.04,4.2829]
[1759101553790,117.94,210.09,210.04,4.2829]
[1759101553991,7.5,210.08,210.0,1.39190071]
[1759101554193,7.5,210.06,209.99,14.57765702]
[1759101554493,117.94,210.09,209.95,1.39190071]
[1759101554494,7.5,210.04,209.95,1.39190071]
[1759101554689,7.5,210.04,209.97,4.2843]
[1759101554886,7.5,210.02,209.97,4.2843]
[1759101555082,117.94,210.02,209.97,4.2843]
[1759101555392,7.5,210.01,209.97,4.2843]
[1759101555890,125.44,210.01,209.97,4.2843]
[1759101556090,7.5,210.0,209.97,4.2843]
[1759101557490,125.44,210.01,209.95,13.98357479]
[1759101557794,125.44,210.01,209.94,4.2848]
[1759101558192,7.5,210.0,209.96,4.2845]
[1759101559797,125.44,210.0,209.96,4.2845]
[1759101559996,7.5,210.0,209.96,4.2845]
[1759101560297,125.44,210.0,209.96,4.2845]
[1759101560490,117.94,210.0,209.96,4.2845]
[1759101560692,125.44,210.0,209.96,4.2845]
[1759101560993,125.44,210.0,209.95,14.20560754]
[1759101560994,117.94,210.0,209.95,14.20560754]
[1759101561189,7.5,209.99,209.91,0.89399202]
[1759101561585,7.5,209.99,209.91,5.17939202]
[1759101561994,117.94,209.98,209.91,5.17939202]
[1759101563294,7.5,209.97,209.91,0.89399202]
[1759101564399,1.39190071,209.99,209.91,0.89399202]
[1759101564400,7.73,209.95,209.91,0.89399202]
[1759101564894,117.94,209.94,209.91,0.89399202]
[1759101565103,7.73,209.93,209.91,0.89399202]
[1759101565301,7.73,209.93,209.91,15.05156354]
[1759101565500,7.73,209.93,209.91,0.89399202]
[1759101566098,1.39190071,209.99,209.91,0.89399202]
[1759101566297,7.73,209.97,209.91,0.89399202]
[1759101567207,9.12190071,209.97,209.9,4.2856]
[1759101567403,117.94,209.96,209.9,4.2856]
[1759101568196,125.67,209.95,209.92,4.2853]
[1759101568403,117.94,209.94,209.92,4.2853]
[1759101569106,125.67,209.94,209.92,4.2853]
[1759101570706,7.73,209.93,209.92,4.2853]
[1759101571005,7.73,209.93,209.91,14.32468571]
[1759101571200,117.96,209.93,209.89,1.39190071]
[1759101571404,7.73,209.92,209.89,1.39190071]
[1759101572107,9.12190071,209.99,209.92,4.2854]
[1759101572309,7.73,209.97,209.92,4.2854]
[1759101572609,117.94,209.96,209.92,4.2854]
[1759101572806,117.94,209.96,209.91,14.33325567]
[1759101573004,7.73,209.95,209.89,5.67780071]
[1759101573205,7.73,209.95,209.89,1.39190071]
[1759101573709,117.94,209.94,209.89,1.39190071]